Cogmind - Beta 13 @@@ ROGUE MODE // 2024.04.27 @ 13:51:18 Player: Red_Zig Result: Destroyed by MG-I3G(R) with Subdweller Machine Gun Performance ------------- Evolutions (0) 0 Regions Visited (2) 400 Robots Destroyed (24) 120 Value Destroyed (644) 644 Prototype IDs (1) 20 Alien Tech Used (0) 0 Bonus (0) 0 TOTAL SCORE: 1184 Bonus ------- None Cogmind --------- Core Integrity 0/250 Matter 295/300 Energy 81/100 System Corruption 0% Temperature Cool (0) Movement Treading (320) Ox2 Location -10/Subcaves Parts ------- > --- POWER (1) -------- (None) > --- PROPULSION (2) --- Light Treads > --- UTILITY (2) ------ Disposable Heat Sink High-capacity Storage Unit > --- WEAPON (2) ------- Particle Gun Improved Medium Laser > --- INVENTORY (20) --- Light Ion Engine Aluminum Leg Aluminum Leg Wheel Wheel Heat Sink Disposable Heat Sink Small Storage Unit Structural Scanner Signal Interpreter Signal Interpreter EM Pulse Gun EM Pulse Gun Small Laser Particle Gun Particle Gun Improved Medium Laser Light Assault Rifle Peak State ------------ > --- POWER ------------ Light Ion Engine > --- PROPULSION ------- Light Treads Light Treads > --- UTILITY ---------- Disposable Heat Sink High-capacity Storage Unit > --- WEAPON ----------- Particle Gun Improved Medium Laser > --- INVENTORY -------- Ion Engine Light Ion Engine Aluminum Leg Aluminum Leg Wheel Wheel Heat Sink Disposable Heat Sink Disposable Heat Sink Small Storage Unit Signal Interpreter Signal Interpreter EM Pulse Gun EM Pulse Gun Small Laser Particle Gun Particle Gun Particle Gun Improved Medium Laser Light Assault Rifle [Rating: 13] Favorites ----------- Power Light Ion Engine Engine Light Ion Engine Propulsion Light Treads Treads Light Treads Leg Aluminum Leg Utility High-capacity Storage Unit Device Disposable Heat Sink Storage High-capacity Storage Unit Weapon Particle Gun Energy Gun Particle Gun Ballistic Gun Light Assault Rifle Build | -11 -10 -10 ------- Run | Yrd Mat Sub Slots Evolved . | . . . Power . | . . . Propulsion . | . . . Utility . | . . . Weapon . | . . . Parts Attached 33 | 7 24 2 Power 4 | 1 3 . Engine 4 | 1 3 . Core . | . . . Reactor . | . . . Propulsion 11 | 2 9 . Treads 6 | . 6 . Leg 5 | 2 3 . Wheel . | . . . Hover . | . . . Flight . | . . . Utility 7 | 2 4 1 Device 4 | 1 2 1 Storage 3 | 1 2 . Processor . | . . . Hackware . | . . . Protection . | . . . Artifact . | . . . Weapon 11 | 2 8 1 Energy Gun 9 | 1 7 1 Energy Cannon . | . . . Ballistic Gun 2 | 1 1 . Ballistic Cannon . | . . . Launcher . | . . . Special Weapon . | . . . Impact Weapon . | . . . Slashing Weapon . | . . . Piercing Weapon . | . . . Special Melee Weapon . | . . . Unidentified Prototypes 1 | . 1 . Parts Lost 9 | . 5 4 Power 2 | . 1 1 Propulsion 3 | . 2 1 Utility 2 | . 1 1 Weapon 2 | . 1 1 Highest Loss Streak 2 | . 2 2 To Critical Strikes 1 | . . 1 Average Slot Usage (%) 87 | . 91 80 Engine 10 | . 12 3 Treads 21 | . 18 27 Leg 2 | . 4 . Device 10 | . 12 5 Storage 14 | . 14 14 Energy Gun 24 | . 23 27 Ballistic Gun 3 | . 4 . Naked Turns . | . . . Heaviest Build 50 | 13 50 50 Greatest Support 40 | 20 40 40 Greatest Overweight (x) 3 | 3 2 1 Average Overweight (x) 1 | . 1 1 Largest Inventory Capacity 20 | 8 20 20 Average Capacity 19 | 7 19 20 Most Carried 20 | 6 20 20 Average Carried 16 | 4 15 19 Final Capacity 20 | 8 20 20 Final Carried 20 | 6 20 18 Class Distribution -------------------- 100% | Mutant Dominant Class ---------------- Mutant | -10/Materials Mutant | -10/Subcaves Resources | -11 -10 -10 ----------- Run | Yrd Mat Sub Matter Collected 689 | 274 405 10 Remotely 125 | 69 56 . Salvage Created 927 | 72 681 174 Parts 51 | 3 37 11 Haulers Intercepted 2 | . 2 . Recyclers Shooed 2 | . 2 . Parts Field Recycled . | . . . Retrieved Matter . | . . . Parts Self-Destructed 11 | . . 11 Prevented . | . . . Kills | -11 -10 -10 ------- Run | Yrd Mat Sub Combat Hostiles Destroyed 17 | . 13 4 Guns 17 | . 13 4 Classes Destroyed 7 | 1 5 1 Hauler 2 | . 2 . Recycler 2 | 1 1 . Operator 1 | . 1 . Watcher 2 | . 2 . Swarmer 2 | . 2 . Grunt 11 | . 11 . Subdweller 4 | . . 4 Best Kill Streak 2 | 1 2 2 Combat Bots Only 2 | . 2 2 Max Kills in Single Turn 1 | 1 1 1 Gunslinging . | . . . Exploded . | . . . Melee . | . . . Uniques/NPCs Destroyed . | . . . Combat | -11 -10 -10 -------- Run | Yrd Mat Sub Hostile Shots Fired 118 | . 97 21 Missed 30 | . 24 6 Damage Taken 1214 | . 912 302 Core 252 | . 200 52 Absorbed by Shields . | . . . Core Remaining (%) 100 | 100 . . Volleys Fired 103 | 4 81 18 Largest 2 | 2 2 2 Hottest 130 | 60 130 130 Shots Fired 201 | 8 157 36 Gun 201 | 8 157 36 Cannon . | . . . Launcher . | . . . Special . | . . . Kinetic 37 | 4 33 . Thermal 159 | 4 119 36 Explosive . | . . . Electromagnetic 5 | . 5 . Robot Hit Streak 17 | 4 10 17 Robot Miss Streak 5 | 1 5 2 Penetration Max . | . . . Secondary Targets 2 | . 2 . Max Gunslinging Chain 1 | . 1 . Shots Hit Robots 133 | 5 98 30 Core Hits 42 | 2 32 8 Critical Kills . | . . . Critical Parts Destroyed . | . . . Critical Strikes 7 | . 5 2 Burn 7 | . 5 2 Melee Attacks . | . . . Impact . | . . . Slashing . | . . . Piercing . | . . . Sneak Attacks . | . . . Combat Hostiles . | . . . Follow-up Attacks . | . . . Damage Inflicted 1628 | 45 1212 371 Guns 1628 | 45 1212 371 Cannons . | . . . Explosions . | . . . Melee . | . . . Ramming . | . . . Kinetic 215 | 24 191 . Thermal 1342 | 21 950 371 Explosive . | . . . Electromagnetic 71 | . 71 . Impact . | . . . Slashing . | . . . Piercing . | . . . Highest Corruption . | . . . Average Corruption . | . . . Corruption Purged . | . . . Corruption Blocked . | . . . Overload Shots . | . . . Overflow Damage . | . . . Projectiles . | . . . Explosions . | . . . Melee . | . . . Knockbacks . | . . . Impact . | . . . Kinetic . | . . . Secondary . | . . . Self-Inflicted Damage . | . . . Shots . | . . . Rammed . | . . . Targets Rammed . | . . . Kicked . | . . . Crushed . | . . . Highest Temperature 653 | 40 653 6 Average Temperature 164 | 25 175 3 Received Heat Transfer 435 | . 417 18 Effects 15 | . 15 . Shutdowns 1 | . 1 . Interference 2 | . 2 . Matter Decay 4 | . 4 . Short Circuit 1 | . 1 . Damage (minor) 4 | . 4 . Damage (major) 2 | . 2 . Damage (core) 1 | . 1 . Siege Activations . | . . . Robots Corrupted . | . . . Combat Hostiles . | . . . Parts Fried . | . . . Impact Corruptions . | . . . Robots Melted . | . . . Combat Hostiles . | . . . Parts Melted 6 | . 6 . Heat Transferred 3937 | 50 2888 999 Parts Sabotaged . | . . . Parts Stolen . | . . . Parts Stripped . | . . . Power Chain Reactions . | . . . Alert | -11 -10 -10 ------- Run | Yrd Mat Sub Peak Influence 208 | 5 208 . Initial 3 | . 3 . Average 40 | 1 42 . Maximum Alert Level 1 | . 1 . Low Security (%) 98 | 100 98 . Level 1 1 | . 1 . Level 2 . | . . . Level 3 . | . . . Level 4 . | . . . Level 5 . | . . . High Security . | . . . Max Security . | . . . Squads Dispatched 3 | . 3 . Investigation . | . . . Extermination . | . . . Reinforcement 3 | . 3 . Assault . | . . . Garrison . | . . . Intercept . | . . . Searches Triggered . | . . . Construction Impeded . | . . . Haulers Reinforced . | . . . Active Scanning Responses . | . . . Cargo Convoy Interrupts . | . . . Stealth | -11 -10 -10 --------- Run | Yrd Mat Sub Distress Signals 2 | . 2 . Communications Jammed . | . . . Distress Signals . | . . . Times Spotted 31 | . 25 6 Peak Tracking Total 4 | . 4 2 Tactical Retreats 3 | . 3 . Traps | -11 -10 -10 ------- Run | Yrd Mat Sub Traps Triggered 1 | . 1 . Indirectly . | . . . Trap Hack Attempts . | . . . Triggered . | . . . Disarmed . | . . . Reprogrammed . | . . . Reused . | . . . Traps Extracted . | . . . Installed . | . . . Triggered . | . . . Machines | -11 -10 -10 ---------- Run | Yrd Mat Sub Machines Disabled . | . . . Max in Single Turn . | . . . Machines Repaired . | . . . Machines Dismantled . | . . . Machines Sabotaged . | . . . Overloaded Fab Kills . | . . . Hacking | -11 -10 -10 --------- Run | Yrd Mat Sub Machines Accessed 5 | . 5 . Terminals 3 | . 3 . Fabricators . | . . . Repair Stations . | . . . Recycling Units 2 | . 2 . Scanalyzers . | . . . Garrison Access . | . . . Total Hacks 12 | . 12 . Successful 9 | . 9 . Failed 3 | . 3 . Catastrophic . | . . . Database Lockouts . | . . . Manual 11 | . 11 . Terminals 8 | . 8 . Fabricators . | . . . Repair Stations . | . . . Recycling Units 4 | . 4 . Scanalyzers . | . . . Garrison Access . | . . . Terminal Hacks . | . . . Fabricator Hacks . | . . . Repair Station Hacks . | . . . Recycling Unit Hacks 1 | . 1 . Report Inventory 1 | . 1 . Scanalyzer . | . . . Garrison Access Hacks . | . . . Unauthorized Hacks 8 | . 8 . Terminals 6 | . 6 . Track 1 | . 1 . Assimilate 1 | . 1 . Botnet 2 | . 2 . Disrupt 1 | . 1 . Operators 1 | . 1 . Fabricators . | . . . Repair Stations . | . . . Recycling Units 2 | . 2 . Monitor 1 | . 1 . Recyclers 1 | . 1 . Scanalyzers . | . . . Garrison Access . | . . . Data Cores Recovered . | . . . Used . | . . . Hacking Detections 4 | . 4 . Full Trace Events . | . . . Feedback Events . | . . . Feedback Blocked . | . . . Robot Schematics Acquired . | . . . Robots Built . | . . . Authchips . | . . . Time . | . . . Total Robot Build Rating . | . . . Part Schematics Acquired . | . . . Parts Built . | . . . Authchips . | . . . Time . | . . . Total Part Build Rating . | . . . Parts Repaired . | . . . Time . | . . . Parts Recycled . | . . . Recycled Matter . | . . . Retrieved Matter . | . . . Retrieved Components . | . . . Parts Scanalyzed . | . . . Part Schematics Acquired . | . . . Parts Damaged . | . . . Bothacking | -11 -10 -10 ------------ Run | Yrd Mat Sub Used RIF Installer . | . . . Robots Hacked . | . . . Non-combat . | . . . Combat . | . . . Robot Hacks Applied . | . . . Relay Couplers Released . | . . . Fabnet Peak Effective % . | . . . Robots Rewired . | . . . Allies Hacked . | . . . Hacks Repelled . | . . . Allies | -11 -10 -10 -------- Run | Yrd Mat Sub Total Allies . | . . . Largest Group . | . . . Highest-Rated Group . | . . . Highest-Rated Ally . | . . . Total Orders . | . . . Ally Attacks . | . . . Total Damage . | . . . Kills . | . . . Allies Corrupted . | . . . Allies Melted . | . . . Intel | -11 -10 -10 ------- Run | Yrd Mat Sub Robot Analysis Total . | . . . Derelict Logs Recovered 1 | . . 1 Drone Launches . | . . . Drone Recoveries . | . . . Exploration | -11 -10 -10 ------------- Run | Yrd Mat Sub Turns Passed 3489 | 78 2405 1006 Spaces Moved 1134 | 42 703 389 Core 15 | 15 . . Treads 972 | . 583 389 Legs 147 | 27 120 . Wheels . | . . . Hover . | . . . Flight . | . . . Fastest Speed 50 | 50 120 240 Average Speed 257 | 120 275 240 Slowest Speed 320 | 200 320 240 Overloaded Moves . | . . . Propulsion Burnouts . | . . . Robots Hopped . | . . . Cave-ins Triggered . | . . . Exploration Rate (%) 38 | 3 82 31 Regions Visited 2 Branch Regions 1 Pre-discovered Areas 1 | . . 1 Known Exits Taken . | . . . Unknown Exits Taken 2 | 1 1 . Scrap Searched 1 | . . 1 Spaces Dug . | . . . Terrain Destroyed . | . . . Melee . | . . . Projectile . | . . . AOE . | . . . Terrain Rammed . | . . . Walls Destroyed . | . . . Machines Disabled . | . . . Actions | -11 -10 -10 --------- Run | Yrd Mat Sub Total 1497 | 58 1012 427 Wait 201 | . 186 15 Move 1132 | 41 702 389 Hop . | . . . Pick Up 19 | 6 13 . Fast Attach 12 | 7 5 . Attach 6 | . 4 2 Detach 4 | . 4 . Swap 15 | . 15 . Drop 2 | . 2 . Fire 103 | 4 81 18 Melee . | . . . Ram . | . . . Kick . | . . . Crush . | . . . Escape Stasis . | . . . Rewire 3 | . . 3 Trap . | . . . Miscellaneous . | . . . Route ------- -11/Scrapyard -10/Materials (discovered 5 exits: [*Mat x3] / [*Min] / [*Sub]) -10/Subcaves (discovered 1 exit: [*Mat]) History --------- Turn | Location | Event 24 | -11/Scrapyard | Discovered new exit (range 15) 79 | -11/Scrapyard | Entered Materials 263 | -10/Materials | Core integrity fell below 50% 312 | -10/Materials | Build established: Mutant 1093 | -10/Materials | Discovered new exit (range 15) 1879 | -10/Materials | Discovered new exit (range 8) 2225 | -10/Materials | Discovered new exit (range 12) 2367 | -10/Materials | Discovered new exit (range 15) 2382 | -10/Materials | Discovered new exit (range 8) 2484 | -10/Materials | Entered Subcaves 2492 | -10/Subcaves | Learned Materials terminal intel 2546 | -10/Subcaves | Learned location of Zion (-7) 2546 | -10/Subcaves | Met a Zionite searching for "candidates" 2748 | -10/Subcaves | Core integrity fell below 20% 3304 | -10/Subcaves | Discovered new exit (range 7) 3490 | -10/Subcaves | Destroyed by MG-I3G(R) with Subdweller Machine Gun Last Messages --------------- 02755_ N6-JU3(R) destroyed. 02775_ Attempting to rewire YU-YK9(R). 02775_ YU-YK9(R) is broken beyond repair. 02781_ Attempting to rewire 6G-8OH(R). 02781_ 6G-8OH(R) is broken beyond repair. 02783_ Subatomizers dissect the Sub. Optics. 02787_ Attempting to rewire C1-BRC(R). 02787_ C1-BRC(R) is broken beyond repair. 02835_ Subatomizers dissect the Sub. Optics. 02868_ Particle Gun destroyed. 02870_ Disposable Heat Sink destroyed. 02881_ 9S-545(R) destroyed. 02886_ DO-QKO(R) suffers critical hit (Burn). 02886_ DO-QKO(R) destroyed. 02891_ Acquired 10 matter. 03304_ EXIT=FOUND 03484_ Critical hit (Destroy). 03484_ Lgt. Treads destroyed. Map ----- +----------------------------------------------------+ | ?????????????????????????????????????????????????? | | ?????????????????????????????????????????????????? | | ?????????????????????????????????????????????????? | | ?????????????????????????????????????????????????? | | ?????????????????????????????????????????????????? | | ?????????????????????????????????????????????????? | | ?????????????????????????????????????????????????? | | ?????????????????????????????????????????????????? | | ?????????????????????????????????????????????????? | | ?????????????????????????????????????????????????? | | ?????????????????????????????????????????????????? | | ?????????????????????????????????????????????????? | | ????????????????????????"????????????????????????? | | ????????????????????????"????????????????????????? | | ???????????????????????? "???????????????????????? | | ??????????????????????## ""??????????????????????? | | ?????????????????????## "??????????????????????? | | ????????????????????## #??????????????????????? | | ????????????????????? ""##?????????????????????? | | ?????????????????????# R""#?????????????????????? | | ???????????? ????????# ###???????????????????? | | ????????? ??????# ##??????????????????? | | ??????????# ##### """"#??????????????????? | | ???????????# """""#???????????????????? | | ????????????# "R #????????????????????? | | ?????????????# @ #????????????????????? | | ?????????????## ## ##???????????????????? | | ??????????? ??## ###?????????????????? | | ??????????### ????## ####??????????????? | | ????????????## ???????## ##?????????????? | | ?????????????# ?????????# ##????????????? | | ?????????????# ??????????# #????????????? | | ?????????????????????????# ##????????????? | | ?????????????????????????## ### #?????????????? | | ???????????? ?????????????## ### ##????????????? | | ??????????? # #? ?????????####?# #????????????? | | ??????????? ## ?????####?????# #????????????? | | ??????????? ???## ##?#### #????????????? | | ????????????# # ???# ### #????????????? | | ???????????## # ???# #????????????? | | ???????????# #??# ####????????????? | | ?????????#### ### #???????????????? | | ????????## ## #???????????????? | | ????????# #### ##??????????????? | | ?????????# #??# #??????????????? | | ???????????# #??# #??????????????? | | ???????????## ######## #??????????????? | | ????????????# #???# ## #??????????????? | | ???????? ???# # #???# ##??????????????? | | ???????? ??# ?## ##???# ###???????????????? | +----------------------------------------------------+ Best States ------------- Heat Dissipation 35 Coolant Potential 50 Energy Generation 10 Energy Capacity 250 Matter Stores 300 Matter Capacity 300 Sight Range 16 Terrain Scan Density 10 Evasion (%) 50 Recoil Reduction 2 Item Schematics ----------------- None Robot Schematics ------------------ None Fabricated ------------ Nothing Alien Tech Used ----------------- None Achievements -------------- None Challenges ------------ None Game ------ Seed RestorationPoweredSuite Manual? 0 Play Time 00:20:59 Cumulative 49.2 hours Start 2024.04.27 @ 13:26:52 End 2024.04.27 @ 13:51:18 Sessions 1 Manual Loads 0 Difficulty Rogue Special Mode None Game No. 46 Rogue 34 Adventurer 12 Explorer 0 Win Type - Total 0 Types 0/0/0/0/0/0/0/0/0 Lore% 24 Gallery% 39 Achievement% 32 Wizard Run 0 Options --------- Layout 2 ASCII 0 Keyboard 0 Movement Mouse Keybinds 0 Fullscreen 1 Font 24/Smallcaps Map View 50x44 Zoom Use 26% Tactical HUD 1 Map Filters NONE Filters NONE Steam 1 RUN: 128de94d-a495-43fa-bdd5-69ac152f5508